bitfinex/quotes_BTCUSD_20250206
["timestamp","ask_amount","ask_price","bid_price","bid_amount"]
[1738866933057,0.0550007,96424.0,96423.0,0.38450215]
[1738866933258,0.1325007,96424.0,96423.0,0.37350215]
[1738866933462,0.1325007,96424.0,96423.0,0.37550215]
[1738866933707,7e-07,96424.0,96423.0,0.39850215]
[1738866934084,0.1555627,96424.0,96423.0,0.37550215]
[1738866934287,0.1655627,96424.0,96423.0,0.37550215]
[1738866934450,7e-07,96424.0,96423.0,0.38450215]
[1738866934654,7e-07,96424.0,96423.0,0.60850365]
[1738866934866,7e-07,96424.0,96423.0,0.60650365]
[1738866935084,7e-07,96424.0,96423.0,0.61550365]
[1738866935286,7e-07,96424.0,96423.0,0.60850365]
[1738866935713,7e-07,96424.0,96423.0,0.61550365]
[1738866936178,7e-07,96424.0,96423.0,0.60950365]
[1738866936940,7e-07,96424.0,96423.0,0.61872772]
[1738866937816,7e-07,96424.0,96423.0,0.59972772]
[1738866938255,7e-07,96424.0,96423.0,0.62057346]
[1738866939250,7e-07,96424.0,96423.0,0.77057346]
[1738866939438,7e-07,96424.0,96423.0,0.76757346]
[1738866939842,7e-07,96424.0,96423.0,0.76257346]
[1738866940114,7e-07,96424.0,96423.0,0.77157346]
[1738866940317,7e-07,96424.0,96423.0,0.91813746]
[1738866940667,7e-07,96424.0,96423.0,2.09603596]
[1738866941020,7e-07,96424.0,96423.0,2.09203596]
[1738866941135,7e-07,96424.0,96423.0,2.09803596]
[1738866941587,4e-07,96430.0,96429.0,0.328554]
[1738866941824,4e-07,96430.0,96429.0,2.09995615]
[1738866943313,4e-07,96430.0,96429.0,2.10895615]
[1738866943518,4e-07,96430.0,96429.0,2.09995615]
[1738866943726,4e-07,96430.0,96429.0,2.10895615]
[1738866943935,4e-07,96430.0,96429.0,2.11595615]
[1738866944171,4e-07,96430.0,96429.0,2.10695615]
[1738866944792,4e-07,96430.0,96429.0,2.09995615]
[1738866945395,4e-07,96430.0,96429.0,2.11595615]
[1738866945735,4e-07,96430.0,96429.0,2.10895615]
[1738866946333,0.0144389,96439.0,96438.0,0.30554]
[1738866946517,0.01457794,96439.0,96438.0,0.43104365]
[1738866946880,0.01457794,96439.0,96438.0,2.09994215]
[1738866947867,0.01457794,96439.0,96438.0,0.43104365]
[1738866948068,0.01457794,96439.0,96438.0,0.97604365]
[1738866948963,0.01457794,96439.0,96438.0,0.99731855]
[1738866949173,0.01457794,96439.0,96438.0,1.11595855]
[1738866949382,0.01457794,96439.0,96438.0,0.40495855]
[1738866949680,0.0144861,96439.0,96438.0,0.40495855]
[1738866950515,0.0144861,96439.0,96438.0,0.39595855]
[1738866950716,0.1424861,96439.0,96438.0,0.65650365]
[1738866950927,0.1524861,96439.0,96438.0,0.64050365]
[1738866951127,0.1524861,96439.0,96438.0,0.10250365]
[1738866951377,0.155561,96425.0,96424.0,0.538]
[1738866951540,0.155561,96425.0,96424.0,0.64050365]
[1738866951940,0.244261,96425.0,96424.0,0.10250365]
[1738866952173,0.16,96424.0,96423.0,0.00022407]
[1738866952408,0.17,96424.0,96423.0,0.00022407]
[1738866952733,0.01,96416.0,96409.0,0.51922407]
[1738866952961,0.01,96411.0,96410.0,0.62172772]
[1738866953370,0.01,96421.0,96411.0,0.023]
[1738866953572,0.01,96421.0,96419.0,0.155569]
[1738866953869,0.1266,96425.0,96420.0,0.12550365]
[1738866954234,0.1266,96425.0,96424.0,0.28106565]
[1738866954366,0.292161,96425.0,96424.0,0.10250365]
[1738866954573,0.1366,96425.0,96424.0,0.10250365]
[1738866956153,0.1366,96425.0,96424.0,0.62172772]
[1738866956977,0.1366,96425.0,96424.0,0.63172772]
[1738866957380,0.1366,96425.0,96424.0,0.62272772]
[1738866957583,0.1266,96425.0,96424.0,0.65372772]
[1738866957790,0.1266,96425.0,96424.0,0.62672772]
[1738866958392,0.1266,96425.0,96424.0,0.62572772]
[1738866958595,0.1266,96425.0,96424.0,0.62672772]
[1738866958932,0.1266,96425.0,96424.0,0.60372772]
[1738866959132,0.1466,96425.0,96424.0,0.01]
[1738866959319,0.2966,96425.0,96424.0,0.01]
[1738866959516,0.452161,96425.0,96424.0,0.01]
[1738866959923,0.01,96416.0,96411.0,0.023]
[1738866960131,0.01,96416.0,96413.0,0.023]
[1738866960328,0.02,96415.0,96414.0,0.10250365]
[1738866960579,0.175577,96415.0,96414.0,0.10250365]
[1738866961026,0.253683,96411.0,96410.0,0.51922407]
[1738866961615,0.403683,96411.0,96410.0,0.51922407]
[1738866962313,0.403683,96411.0,96408.0,0.00022407]
[1738866962314,0.325587,96409.0,96408.0,0.00022407]
[1738866962748,0.325587,96409.0,96396.0,0.50022407]
[1738866962749,0.251906,96397.0,96396.0,0.50022407]
[1738866963099,0.155635,96379.0,96378.0,0.50022407]
[1738866963295,0.155635,96379.0,96378.0,0.60272772]
[1738866963296,0.214635,96379.0,96378.0,0.60272772]
[1738866963548,0.214635,96379.0,96378.0,0.60319183]
[1738866963693,0.224635,96379.0,96378.0,0.60319183]
[1738866963923,0.303735,96379.0,96378.0,0.60319183]
[1738866964540,0.303735,96379.0,96378.0,0.00046411]
[1738866965016,0.303735,96379.0,96378.0,0.00146411]
[1738866965017,0.453735,96379.0,96378.0,0.00146411]
[1738866965213,0.676169,96379.0,96378.0,0.00146411]
[1738866965843,0.676169,96379.0,96378.0,0.01046411]
[1738866966022,0.676169,96379.0,96378.0,0.00146411]
[1738866966228,0.676169,96379.0,96378.0,0.00046411]
[1738866966497,0.676169,96379.0,96378.0,0.00846411]
[1738866966672,0.676169,96379.0,96378.0,0.00146411]
[1738866966880,0.453735,96379.0,96378.0,0.00146411]
[1738866967080,0.443735,96379.0,96378.0,0.00346411]
[1738866967237,0.453735,96379.0,96378.0,0.00046411]
[1738866967442,0.443735,96379.0,96378.0,0.00046411]
[1738866967662,0.15,96378.0,96365.0,0.13734518]
[1738866967942,0.01,96360.0,96355.0,0.023]
[1738866968198,0.01,96360.0,96354.0,0.50036313]
[1738866968199,0.01,96360.0,96359.0,0.023]
[1738866968882,0.01,96360.0,96359.0,0.230556]
[1738866969656,0.01,96362.0,96360.0,0.023]
[1738866969859,0.01,96361.0,96360.0,0.178666]
[1738866970232,0.335615,96379.0,96360.0,0.178666]
[1738866970233,0.01,96371.0,96368.0,0.155653]
[1738866970452,0.1281,96379.0,96378.0,0.155637]
[1738866970653,0.1381,96379.0,96378.0,0.75836472]
[1738866970801,0.1381,96379.0,96378.0,0.60272772]
[1738866972674,0.1409361,98862.0,96379.0,0.023]
[1738866972675,0.01,96390.0,96379.0,0.023]
[1738866972877,0.0857,96403.0,96397.0,0.178606]
[1738866973079,0.09317089,96398.0,96397.0,0.28110965]
[1738866973319,0.09317089,96398.0,96397.0,0.12550365]
[1738866973519,0.09317089,96398.0,96397.0,0.08350365]
[1738866973520,0.01,96398.0,96397.0,0.08350365]
[1738866974301,0.01046345,96398.0,96397.0,0.08350365]
[1738866974509,0.01046345,96398.0,96397.0,0.26210965]
[1738866975795,0.16606745,96398.0,96397.0,0.08350365]
[1738866975916,0.01,96384.0,96380.0,0.50022407]
[1738866976109,0.00046345,96398.0,96385.0,0.155625]
[1738866976110,0.01,96387.0,96385.0,0.155625]
[1738866976398,0.01,96387.0,96386.0,0.12550365]
[1738866977164,0.01,96387.0,96386.0,0.62572772]
[1738866977909,0.01,96387.0,96386.0,0.60672772]
[1738866978313,0.01,96397.0,96386.0,0.60672772]
[1738866978521,0.01,96397.0,96396.0,0.155608]
[1738866978712,0.01,96397.0,96396.0,0.28111165]
[1738866979530,0.00046345,96398.0,96397.0,0.023]
[1738866979721,0.00046345,96398.0,96397.0,0.62572772]
[1738866980293,0.00046345,96398.0,96397.0,0.64624184]
[1738866981606,0.00046345,96398.0,96397.0,0.80184784]
[1738866982037,0.00046345,96398.0,96397.0,0.96584784]
[1738866982831,0.08317089,96427.0,96415.0,0.328577]
[1738866983003,0.0405539,96427.0,96426.0,0.328559]
[1738866983202,0.08317089,96451.0,96438.0,0.32854]
[1738866983449,0.09776369,96439.0,96438.0,0.93126772]
[1738866983629,0.0145928,96439.0,96438.0,0.93126772]
[1738866985023,0.0145928,96439.0,96438.0,0.94026772]
[1738866985657,0.0145928,96439.0,96438.0,0.96144077]
[1738866985868,0.0145928,96439.0,96438.0,0.96544077]
[1738866987656,0.0145928,96439.0,96438.0,0.94644077]
[1738866989126,0.0145928,96439.0,96438.0,0.94244077]
[1738866989305,0.0145928,96439.0,96438.0,0.94044077]
[1738866989641,0.0145928,96439.0,96438.0,0.94944077]
[1738866989827,0.0145928,96439.0,96438.0,0.94244077]
[1738866990048,0.0003068,96469.0,96460.0,0.155504]
[1738866990362,0.0003068,96469.0,96460.0,0.28100765]
[1738866990561,0.0003068,96469.0,96468.0,0.155491]
[1738866990864,0.00044581,96469.0,96468.0,0.78121872]
[1738866991239,8.1e-07,96469.0,96468.0,0.93121872]
[1738866991588,0.0001068,96480.0,96479.0,0.305474]
[1738866991798,0.0001068,96480.0,96479.0,0.43097765]
[1738866991968,0.0001068,96480.0,96479.0,0.93120172]
[1738866992134,0.0001068,96491.0,96490.0,0.155456]
[1738866992331,0.0001068,96491.0,96490.0,0.93118372]
[1738866992740,0.0001068,96491.0,96490.0,0.91218372]
[1738866993341,0.0001068,96491.0,96490.0,0.63472772]
[1738866993565,0.0789,96502.0,96491.0,0.155454]
[1738866993566,0.00997707,96493.0,96491.0,0.155454]
[1738866993764,0.00997707,96493.0,96492.0,0.10250365]
[1738866993980,0.00997707,96493.0,96492.0,0.12550365]
[1738866994596,0.00046327,96499.0,96498.0,0.155443]
[1738866994801,0.00046327,96499.0,96498.0,0.26427998]
[1738866996717,0.00046327,96499.0,96498.0,0.26827998]
[1738866996899,0.01044034,96499.0,96498.0,0.62972772]
[1738866997097,0.01034853,96499.0,96498.0,0.62972772]
[1738866997241,0.01034853,96499.0,96498.0,0.63472772]
[1738866997441,0.01034853,96499.0,96498.0,0.62972772]
[1738866997647,0.01034853,96499.0,96498.0,0.61072772]
[1738866997890,0.01034853,96499.0,96498.0,0.61572772]
[1738866998098,0.08914853,96499.0,96498.0,0.60672772]
[1738866998273,0.08914853,96499.0,96498.0,0.11550365]
[1738866998274,0.14424853,96499.0,96498.0,0.11550365]
[1738866998490,0.29969053,96499.0,96498.0,0.013]
[1738866998675,0.29969053,96499.0,96498.0,0.009]
[1738866999041,0.29969053,96499.0,96498.0,0.012]
[1738866999155,0.14424853,96499.0,96498.0,0.012]
[1738866999354,0.13424853,96499.0,96498.0,0.61472772]
[1738866999611,0.00037146,96499.0,96498.0,0.61172772]
[1738866999971,0.00037146,96499.0,96498.0,0.63572772]
[1738867000167,0.00037146,96499.0,96498.0,0.64706539]
[1738867000368,0.00037146,96499.0,96498.0,0.65506539]
[1738867000819,0.00037146,96499.0,96498.0,0.64706539]
[1738867001033,0.00037146,96499.0,96498.0,0.65606539]
[1738867001784,0.00037146,96499.0,96498.0,0.64706539]
[1738867002127,0.00037146,96499.0,96498.0,0.64606539]
[1738867002330,0.00037146,96499.0,96498.0,0.65906539]
[1738867002532,0.00037146,96499.0,96498.0,0.63872772]
[1738867002674,0.00037146,96499.0,96498.0,0.77517072]
[1738867002876,0.00037146,96499.0,96498.0,0.77117072]
[1738867003286,0.00037146,96499.0,96498.0,0.77517072]
[1738867003519,0.00037146,96499.0,96498.0,0.76617072]
[1738867003728,0.00037146,96499.0,96498.0,0.77517072]
[1738867003929,0.00037146,96499.0,96498.0,0.76617072]
[1738867004413,0.00037146,96499.0,96498.0,0.77517072]
[1738867004579,0.00037146,96499.0,96498.0,0.76617072]
[1738867004954,0.00037146,96499.0,96498.0,0.77517072]
[1738867005115,0.00037146,96499.0,96498.0,0.77117072]
[1738867005319,0.00037146,96499.0,96498.0,0.76217072]
[1738867005738,0.00037146,96499.0,96498.0,0.76617072]
[1738867005912,0.01034853,96499.0,96498.0,0.58772772]
[1738867006319,0.01034853,96499.0,96498.0,0.58372772]
[1738867006764,0.01034853,96499.0,96498.0,0.58772772]
[1738867007506,0.29849053,96499.0,96498.0,0.60572772]
[1738867007624,0.29849053,96499.0,96498.0,0.58672772]
[1738867008252,0.14304853,96499.0,96498.0,0.08650365]
[1738867008452,0.00037146,96499.0,96498.0,0.74217072]
[1738867008752,0.00037146,96499.0,96498.0,0.76517072]
[1738867010560,0.00047826,96499.0,96498.0,0.76517072]
[1738867012712,0.00047826,96499.0,96498.0,0.74617072]
[1738867015199,0.00047826,96499.0,96498.0,0.74517072]
[1738867015311,0.00047826,96499.0,96498.0,0.74917072]
[1738867015510,0.00047826,96499.0,96498.0,0.75317072]
[1738867015939,0.00047826,96499.0,96498.0,0.59772772]
[1738867016139,0.00047826,96499.0,96498.0,0.75317072]
[1738867016335,0.00047826,96499.0,96498.0,0.59772772]
[1738867017119,0.00047826,96499.0,96498.0,0.57472772]
[1738867017541,0.00047826,96499.0,96498.0,0.59772772]
[1738867017737,0.00047826,96499.0,96498.0,0.56972772]
[1738867017961,0.00047826,96499.0,96498.0,0.56072772]
[1738867018384,0.00047826,96499.0,96498.0,0.55872772]
[1738867018705,0.00047826,96499.0,96498.0,0.56172772]
[1738867019489,0.16589733,96499.0,96498.0,0.53872772]
[1738867019737,0.17589733,96499.0,96498.0,0.53872772]
[1738867020063,0.17589733,96499.0,96498.0,0.03850365]
[1738867020802,0.32589733,96499.0,96498.0,0.03850365]
[1738867021012,0.40479733,96499.0,96498.0,0.012]
[1738867021158,0.40479733,96499.0,96498.0,0.003]
[1738867021359,0.40479733,96499.0,96476.0,0.50022407]
[1738867021360,0.155473,96480.0,96476.0,0.50022407]
[1738867021545,0.01,96479.0,96477.0,0.10250365]
[1738867022826,0.01,96479.0,96477.0,0.08350365]
[1738867023203,0.00997707,96492.0,96478.0,0.12550365]
[1738867023406,0.00997707,96491.0,96481.0,0.023]
[1738867023621,0.00997707,96492.0,96490.0,0.155455]
[1738867023846,0.0458,96497.0,96491.0,0.10250365]
[1738867024019,0.00997707,96494.0,96491.0,0.10250365]
[1738867024196,0.0458,96497.0,96492.0,0.023]
[1738867024424,0.08935533,96499.0,96498.0,0.155443]
[1738867024425,0.01045533,96499.0,96498.0,0.155443]
[1738867024596,0.01045533,96499.0,96498.0,0.28094665]
[1738867025764,0.00047826,96499.0,96498.0,0.28194665]
[1738867026011,0.00047826,96499.0,96498.0,0.29094665]
[1738867026418,0.00047826,96499.0,96498.0,0.79017072]
[1738867026589,0.00047826,96499.0,96498.0,0.8254935]
[1738867027378,0.00047826,96499.0,96498.0,0.8164935]
[1738867027576,0.00047826,96499.0,96498.0,0.8254935]
[1738867027842,0.00047826,96499.0,96498.0,0.61472772]
[1738867027996,0.02045533,96499.0,96498.0,0.61172772]
[1738867028203,0.02045533,96499.0,96498.0,0.61572772]
[1738867028607,0.17589733,96499.0,96498.0,0.61572772]
[1738867028812,0.37429733,96499.0,96498.0,0.013]
[1738867029762,0.37429733,96499.0,96498.0,0.009]
[1738867030367,0.21885533,96499.0,96481.0,0.50022407]
[1738867030587,0.15,96498.0,96482.0,0.10250365]
[1738867030706,0.00997707,96488.0,96482.0,0.10250365]
[1738867030912,0.01997707,96487.0,96486.0,0.155462]
[1738867031170,0.01997707,96487.0,96486.0,0.25796565]
[1738867031734,0.00997707,96487.0,96486.0,0.25796565]
[1738867031939,0.00047826,96499.0,96497.0,0.155445]
[1738867032141,0.00047826,96499.0,96498.0,0.10250365]
[1738867032342,0.00047826,96499.0,96498.0,0.62572772]
[1738867033583,0.00047826,96499.0,96498.0,0.60672772]
[1738867034535,0.00047826,96499.0,96498.0,0.61072772]
[1738867034741,0.00047826,96499.0,96498.0,0.61972772]
[1738867035274,0.00047826,96499.0,96498.0,0.61572772]
[1738867035479,0.00047826,96499.0,96498.0,0.60672772]
[1738867035680,0.01045533,96499.0,96498.0,0.59272772]
[1738867035889,0.30149733,96499.0,96498.0,0.59672772]
[1738867036209,0.45149733,96499.0,96498.0,0.59672772]
[1738867036413,0.45149733,96499.0,96498.0,0.09650365]
[1738867036910,0.45149733,96499.0,96498.0,0.08750365]
[1738867037469,0.45149733,96499.0,96498.0,0.0109286]
[1738867037682,0.15,96498.0,96493.0,0.10956]
[1738867037909,0.15,96498.0,96493.0,0.09056]
[1738867037910,0.32542707,96494.0,96493.0,0.09056]
[1738867038618,0.00997707,96494.0,96493.0,0.34851465]
[1738867038816,0.01997707,96494.0,96493.0,0.35051465]
[1738867039489,0.01997707,96494.0,96493.0,0.19506365]
[1738867040042,0.01997707,96494.0,96493.0,0.20206365]
[1738867040446,0.01,96498.0,96493.0,0.19506365]
[1738867040650,0.00047826,96499.0,96498.0,0.178443]
[1738867040833,0.00047826,96499.0,96498.0,0.28094665]
[1738867041460,0.00047826,96499.0,96498.0,0.78117072]
[1738867042071,0.00047826,96499.0,96498.0,0.79317072]
[1738867042878,0.00047826,96499.0,96498.0,0.77417072]
[1738867043245,0.00047826,96499.0,96498.0,0.76217072]
[1738867043481,0.00047826,96499.0,96498.0,0.77717072]
[1738867044035,0.00047826,96499.0,96498.0,0.79767206]
[1738867044240,0.00043826,96499.0,96498.0,0.79767206]
[1738867045011,0.00043826,96499.0,96498.0,0.87297206]
[1738867045217,0.00043826,96499.0,96498.0,0.79767206]
[1738867046889,2.6e-07,96499.0,96498.0,0.94767206]
[1738867047874,0.0002,96509.0,96508.0,0.155427]
[1738867048069,0.0001068,96513.0,96508.0,0.155427]
[1738867048070,7.3e-07,96513.0,96509.0,0.173]
[1738867048281,7.3e-07,96513.0,96512.0,0.40792465]
[1738867050362,7.3e-07,96513.0,96512.0,0.43092465]
[1738867050564,7.3e-07,96513.0,96512.0,0.25792465]
[1738867051017,7.3e-07,96513.0,96512.0,0.27292465]
[1738867051449,7.3e-07,96513.0,96512.0,0.77314872]
[1738867051651,0.0099778,96513.0,96512.0,0.77314872]
[1738867051853,0.0199778,96513.0,96512.0,0.61772772]
[1738867052451,7.3e-07,96513.0,96512.0,0.61772772]
[1738867052610,7.3e-07,96513.0,96512.0,0.64072772]
[1738867052791,7.3e-07,96513.0,96512.0,0.61572772]
[1738867053239,7.3e-07,96513.0,96512.0,0.61872772]
[1738867053442,7.3e-07,96513.0,96512.0,0.60972772]
[1738867053761,7.3e-07,96513.0,96512.0,0.61572772]
[1738867053969,7.3e-07,96513.0,96512.0,0.62072772]
[1738867054167,7.3e-07,96513.0,96512.0,0.61172772]
[1738867054370,7.3e-07,96513.0,96512.0,0.61572772]
[1738867054822,7.3e-07,96513.0,96512.0,0.62172772]
[1738867055214,7.3e-07,96513.0,96512.0,0.61272772]
[1738867055646,7.3e-07,96513.0,96512.0,0.62172772]
[1738867056297,7.3e-07,96513.0,96512.0,0.61572772]
[1738867056704,7.3e-07,96513.0,96512.0,0.62072772]
[1738867057262,7.3e-07,96513.0,96512.0,0.60672772]
[1738867057461,7.3e-07,96513.0,96512.0,0.60695179]
[1738867057669,7.3e-07,96513.0,96512.0,0.62095179]
[1738867057870,7.3e-07,96513.0,96512.0,0.75195179]
[1738867058536,7.3e-07,96513.0,96512.0,0.74295179]
[1738867058870,7.3e-07,96513.0,96512.0,0.75195179]
[1738867059934,7.3e-07,96513.0,96512.0,0.74695179]
[1738867060147,7.3e-07,96513.0,96512.0,0.74395179]
[1738867060345,7.3e-07,96513.0,96512.0,0.75295179]
[1738867060640,7.3e-07,96513.0,96512.0,0.74695179]
[1738867061018,7.3e-07,96513.0,96512.0,0.75395179]
[1738867061487,7.3e-07,96513.0,96512.0,0.76474819]
[1738867064107,1.3e-07,96522.0,96521.0,0.328406]
[1738867064314,1.3e-07,96522.0,96521.0,0.43090965]
[1738867064520,1.3e-07,96522.0,96521.0,0.75813372]
[1738867065054,1.3e-07,96522.0,96521.0,0.77889089]
[1738867065257,1.3e-07,96522.0,96521.0,0.80189089]
[1738867066285,1.3e-07,96522.0,96521.0,0.80989089]
[1738867066534,1.3e-07,96522.0,96521.0,0.91941089]
[1738867066669,1.3e-07,96522.0,96521.0,0.92841089]
[1738867067305,1.3e-07,96522.0,96521.0,0.91941089]
[1738867067721,1.3e-07,96522.0,96521.0,0.92841089]
[1738867067878,1.3e-07,96522.0,96521.0,0.91941089]
[1738867068080,1.3e-07,96522.0,96521.0,0.91141089]
[1738867068826,1.3e-07,96522.0,96521.0,0.92041089]
[1738867069616,1.3e-07,96522.0,96521.0,1.07041089]
[1738867069841,1.3e-07,96522.0,96521.0,1.08054731]
[1738867070002,1.3e-07,96522.0,96521.0,1.08854731]
[1738867070212,1.3e-07,96522.0,96521.0,1.07954731]
[1738867070416,1.3e-07,96522.0,96521.0,1.08854731]
[1738867070796,1.3e-07,96522.0,96521.0,1.07954731]
[1738867071113,0.00997707,96562.0,96557.0,0.155348]
[1738867071330,0.0002458,96558.0,96557.0,0.28085165]
[1738867071534,0.01022287,96558.0,96557.0,0.28085165]
[1738867072192,0.0002458,96558.0,96557.0,0.28085165]
[1738867072767,0.0002458,96558.0,96557.0,0.76607572]
[1738867073738,0.0002458,96558.0,96557.0,0.77507572]
[1738867074724,0.0002458,96558.0,96557.0,0.79579873]
[1738867075967,0.01022287,96558.0,96557.0,0.63645073]
[1738867076143,0.08962287,96558.0,96557.0,0.79179873]
[1738867077782,0.08962287,96558.0,96557.0,0.77279873]
[1738867078180,0.08662287,96558.0,96557.0,0.77279873]
[1738867078707,0.00722287,96560.0,96559.0,0.178345]
[1738867078823,0.0753,96567.0,96559.0,0.178345]
[1738867078824,0.00722287,96562.0,96561.0,0.155342]
[1738867079032,0.00722287,96562.0,96561.0,0.28084565]
[1738867079477,0.00222287,96562.0,96561.0,0.28084565]
[1738867080102,0.00222287,96562.0,96561.0,0.28984565]
[1738867081489,0.00222287,96562.0,96561.0,0.28084565]
[1738867081674,0.00222287,96562.0,96561.0,0.29284565]
[1738867082111,0.00222287,96562.0,96561.0,0.28984565]
[1738867082507,0.00222287,96562.0,96561.0,0.29384565]
[1738867082723,0.00222287,96562.0,96561.0,0.27484565]
[1738867083347,0.00222287,96562.0,96561.0,0.77506972]
[1738867083530,0.07252287,96567.0,96566.0,0.155334]
[1738867083756,0.0489,96579.0,96578.0,0.155314]
[1738867083928,0.0489,96579.0,96578.0,0.75804172]
[1738867084291,0.0589,96579.0,96578.0,0.75804172]
[1738867084487,0.0489,96579.0,96578.0,0.75804172]
[1738867084635,0.0589,96579.0,96578.0,0.75804172]
[1738867084839,0.0589,96579.0,96578.0,0.76704172]
[1738867085273,0.0479228,96579.0,96578.0,0.76704172]
[1738867085727,0.0379228,96579.0,96578.0,0.76904172]
[1738867086036,0.0479228,96579.0,96578.0,0.76904172]
[1738867086251,0.0479228,96579.0,96578.0,0.61372772]
[1738867086453,0.2763228,96579.0,96578.0,0.011]
[1738867086681,0.2763228,96579.0,96555.0,0.50022407]
[1738867086682,0.0876,96556.0,96555.0,0.50022407]
[1738867086886,0.01,96555.0,96554.0,0.10948]
[1738867087096,0.01,96555.0,96554.0,0.36733665]
[1738867087244,0.005,96555.0,96554.0,0.36733665]
[1738867087449,0.005,96555.0,96554.0,0.21198365]
[1738867087690,0.005,96555.0,96554.0,0.10948]
[1738867087899,0.2323,96555.0,96554.0,0.10948]
[1738867088048,0.2323,96555.0,96554.0,0.04948]
[1738867088253,0.2793,96555.0,96554.0,0.04048]
[1738867088660,0.2793,96555.0,96554.0,0.04948]
[1738867088661,0.1293,96555.0,96554.0,0.04948]
[1738867088869,0.1293,96555.0,96554.0,0.30133665]
[1738867089174,0.1293,96555.0,96554.0,0.29833665]
[1738867089381,0.0773,96555.0,96554.0,0.29833665]
[1738867089588,0.005,96563.0,96554.0,0.64420772]
[1738867089762,0.005,96563.0,96561.0,0.155341]
[1738867089966,0.005,96563.0,96562.0,0.60272772]
[1738867090212,0.005,96563.0,96562.0,0.50022407]
[1738867090404,0.160339,96563.0,96562.0,0.50022407]
[1738867090614,0.005,96563.0,96562.0,0.50022407]
[1738867090813,0.006,96563.0,96562.0,0.50022407]
[1738867091304,0.002,96563.0,96562.0,0.50922407]
[1738867091710,0.002,96563.0,96562.0,0.009]
[1738867091922,0.002,96563.0,96562.0,0.011]
[1738867092950,0.002,96563.0,96562.0,0.11350365]
[1738867093746,0.002,96563.0,96562.0,0.09450365]
[1738867093950,0.002,96563.0,96562.0,0.59472772]
[1738867094292,0.002,96563.0,96562.0,0.61772772]
[1738867095214,0.002,96563.0,96562.0,0.77306772]
[1738867096087,0.002,96563.0,96562.0,0.75006772]
[1738867096403,0.0777,96575.0,96562.0,0.75006772]
[1738867096641,0.0777,96575.0,96574.0,0.155321]
[1738867096858,0.0777,96575.0,96574.0,0.25782465]
[1738867097672,0.0825,96585.0,96582.0,0.155308]
[1738867097810,0.0825,96585.0,96582.0,0.08350365]
[1738867098221,0.07754,96585.0,96582.0,0.08350365]
[1738867100040,0.001,96583.0,96582.0,0.09250365]
[1738867100175,0.001,96583.0,96582.0,0.08350365]
[1738867100369,0.00111501,96583.0,96582.0,0.08350365]
[1738867100585,0.00111501,96583.0,96582.0,0.09250365]
[1738867100783,0.00111501,96583.0,96581.0,0.50022407]
[1738867100784,0.00011501,96583.0,96581.0,0.50022407]
[1738867100982,0.15,96579.0,96561.0,0.50022407]
[1738867101171,0.15129431,96580.0,96562.0,0.60272772]
[1738867101552,0.0012943,96579.0,96563.0,0.02036523]
[1738867101956,0.0012943,96579.0,96562.0,0.60272772]
[1738867101957,0.155339,96563.0,96562.0,0.60272772]
[1738867102087,0.0808,96564.0,96562.0,0.60272772]
[1738867102290,0.155339,96563.0,96562.0,0.50022407]
[1738867102517,0.0808,96564.0,96562.0,0.50022407]
[1738867102889,0.155351,96555.0,96554.0,0.00022407]
[1738867103124,0.383551,96555.0,96554.0,0.00022407]
[1738867104188,0.384551,96555.0,96554.0,0.00722407]
[1738867104610,0.384551,96555.0,96554.0,0.00022407]
[1738867104611,0.383551,96555.0,96554.0,0.00022407]
[1738867105569,0.2282,96555.0,96554.0,0.00022407]
[1738867105734,0.0782,96555.0,96554.0,0.00022407]
[1738867105938,0.0792,96555.0,96554.0,0.00722407]
[1738867106517,0.234551,96555.0,96554.0,0.00722407]
[1738867106679,0.233551,96555.0,96554.0,0.00122407]
[1738867107095,0.234551,96555.0,96554.0,0.00922407]
[1738867107502,0.384551,96555.0,96554.0,0.01022407]
[1738867107738,0.384551,96555.0,96533.0,0.48122407]
[1738867107946,0.15129481,96554.0,96522.0,0.47244814]
[1738867108128,0.155381,96537.0,96524.0,0.1554]
[1738867108315,0.155381,96537.0,96522.0,0.47244814]
[1738867108316,0.155382,96536.0,96525.0,0.10250365]
[1738867108518,0.15129494,96552.0,96525.0,0.10250365]
[1738867108700,0.155397,96527.0,96525.0,0.10250365]
[1738867108919,0.155379,96538.0,96526.0,0.155398]
[1738867109307,0.1259,96551.0,96530.0,0.155391]
[1738867109507,0.15,96550.0,96531.0,0.10250365]
[1738867109659,0.15,96550.0,96540.0,0.155374]
[1738867109828,0.1259,96551.0,96540.0,0.10250365]
[1738867110258,0.155373,96542.0,96540.0,0.10250365]
[1738867110459,0.1259,96551.0,96530.0,0.47244814]
[1738867110648,0.1259,96551.0,96541.0,0.10250365]
[1738867110887,0.155365,96547.0,96541.0,0.10250365]
[1738867111397,0.207148,96549.0,96541.0,0.10250365]
[1738867111610,0.001,96550.0,96544.0,0.155368]
[1738867111806,0.001,96550.0,96541.0,0.10250365]
[1738867112021,0.155361,96549.0,96541.0,0.10250365]
[1738867112865,0.15537,96544.0,96540.0,0.009]
[1738867113232,0.15537,96544.0,96541.0,0.001]
[1738867113434,0.00129475,96543.0,96541.0,0.001]
[1738867113714,0.079,96551.0,96528.0,0.47244814]
[1738867113852,0.079,96551.0,96541.0,0.001]
[1738867114060,0.001,96542.0,96541.0,0.001]
[1738867114285,0.001,96542.0,96540.0,0.164375]
[1738867114286,0.234358,96551.0,96540.0,0.155375]
[1738867114497,0.234358,96551.0,96541.0,0.002]
[1738867114704,0.001,96543.0,96541.0,0.011]
[1738867114900,0.001,96543.0,96542.0,0.25787565]
[1738867115490,0.207124,96561.0,96542.0,0.10250365]
[1738867115728,0.001,96551.0,96542.0,0.10250365]
[1738867116204,0.155362,96549.0,96542.0,0.10250365]
[1738867116383,0.155365,96547.0,96541.0,0.012]
[1738867116584,0.00129474,96546.0,96542.0,0.00022407]
[1738867116787,0.00129476,96549.0,96542.0,0.00022407]
[1738867117063,0.00129476,96561.0,96546.0,0.155364]
[1738867117264,0.155347,96558.0,96546.0,0.155364]
[1738867117473,0.00129474,96557.0,96542.0,0.01122407]
[1738867117637,0.00129477,96556.0,96549.0,0.15536]
[1738867117824,0.001,96549.0,96545.0,0.207157]
[1738867118000,0.001,96549.0,96548.0,0.155363]
[1738867118205,0.00129466,96561.0,96550.0,0.155358]
[1738867118400,0.001,96558.0,96548.0,0.25786665]
[1738867118652,0.001,96558.0,96548.0,0.10250365]
[1738867118827,0.207128,96559.0,96548.0,0.10250365]
[1738867119225,0.0754,96562.0,96550.0,0.155359]
[1738867119428,0.00129466,96561.0,96550.0,0.155359]
[1738867119830,0.207125,96560.0,96548.0,0.10350365]